[Event "*** SCC Grand Prix: Titled Tuesday Blitz"]
[Site "Chess.com"]
[Date "2020.07.07"]
[Round "10"]
[White "awesomevishesh"]
[Black "Yoshikrov"]
[Result "0-1"]
[WhiteElo "2358"]
[BlackElo "2117"]
[TimeControl "180+1"]
[EndTime "12:00:36 PDT"]
[Termination "Yoshikrov won by checkmate"]

1. d4 {[%clk 0:03:00.9]} 1... Nf6 {[%clk 0:03:00]} 2. c4 {[%clk 0:02:59.3]} 2...
g6 {[%clk 0:02:59.9]} 3. g3 {[%clk 0:02:59.1]} 3... d5 {[%clk 0:03:00]} 4. Bg2
{[%clk 0:03:00]} 4... Bg7 {[%clk 0:03:00.2]} 5. Nf3 {[%clk 0:03:00.2]} 5... O-O
{[%clk 0:03:00.1]} 6. O-O {[%clk 0:03:00.7]} 6... dxc4 {[%clk 0:02:45.4]} 7. Na3
{[%clk 0:02:59.5]} 7... c5 {[%clk 0:02:44.3]} 8. Nxc4 {[%clk 0:02:56.5]} 8...
cxd4 {[%clk 0:02:44.1]} 9. Nxd4 {[%clk 0:02:56.5]} 9... Nbd7 {[%clk 0:02:30.1]}
10. b3 {[%clk 0:02:51.8]} 10... Nb6 {[%clk 0:02:28.1]} 11. Na5 {[%clk
0:02:18.4]} 11... Nbd5 {[%clk 0:02:12.6]} 12. Qd2 {[%clk 0:02:17.3]} 12... Rb8
{[%clk 0:01:28.4]} 13. Bb2 {[%clk 0:02:13.8]} 13... Qb6 {[%clk 0:01:11.8]} 14.
Nc4 {[%clk 0:02:07.5]} 14... Qb4 {[%clk 0:01:06.2]} 15. Qd3 {[%clk 0:01:50.3]}
15... e6 {[%clk 0:01:01.5]} 16. Ba3 {[%clk 0:01:48.4]} 16... Qc3 {[%clk
0:00:56.2]} 17. Qxc3 {[%clk 0:01:42.3]} 17... Nxc3 {[%clk 0:00:55.1]} 18. Bxf8
{[%clk 0:01:41.9]} 18... Bxf8 {[%clk 0:00:55.4]} 19. Rac1 {[%clk 0:01:38.2]}
19... Ncd5 {[%clk 0:00:54.4]} 20. e4 {[%clk 0:01:14.2]} 20... Nb4 {[%clk
0:00:54.5]} 21. a3 {[%clk 0:01:13.3]} 21... Nd3 {[%clk 0:00:52.9]} 22. Rc3
{[%clk 0:01:04.8]} 22... Nc5 {[%clk 0:00:49.3]} 23. e5 {[%clk 0:00:55.3]} 23...
Nd5 {[%clk 0:00:49.3]} 24. Bxd5 {[%clk 0:00:51.3]} 24... exd5 {[%clk 0:00:50.2]}
25. Nd6 {[%clk 0:00:47.2]} 25... Bxd6 {[%clk 0:00:45.1]} 26. exd6 {[%clk
0:00:46.8]} 26... Ne4 {[%clk 0:00:45.8]} 27. Rc7 {[%clk 0:00:44.6]} 27... Nxd6
{[%clk 0:00:45.2]} 28. Kg2 {[%clk 0:00:35.2]} 28... Bf5 {[%clk 0:00:33.3]} 29.
Re1 {[%clk 0:00:31.6]} 29... Be4+ {[%clk 0:00:29.2]} 30. f3 {[%clk 0:00:31]}
30... Bd3 {[%clk 0:00:29.7]} 31. Re5 {[%clk 0:00:27.1]} 31... Nf5 {[%clk
0:00:25.5]} 32. Rxd5 {[%clk 0:00:24.5]} 32... Ne3+ {[%clk 0:00:25.4]} 33. Kf2
{[%clk 0:00:22.9]} 33... Nxd5 {[%clk 0:00:26.3]} 34. Rd7 {[%clk 0:00:22.2]}
34... Nb6 {[%clk 0:00:25.6]} 35. Rd6 {[%clk 0:00:22.1]} 35... Ba6 {[%clk
0:00:25.3]} 36. f4 {[%clk 0:00:18]} 36... Kg7 {[%clk 0:00:24.2]} 37. a4 {[%clk
0:00:17.2]} 37... Rc8 {[%clk 0:00:22.2]} 38. a5 {[%clk 0:00:15.7]} 38... Na8
{[%clk 0:00:21.1]} 39. Rd7 {[%clk 0:00:15.4]} 39... Nc7 {[%clk 0:00:20.6]} 40.
b4 {[%clk 0:00:14]} 40... Nb5 {[%clk 0:00:20.2]} 41. Ne6+ {[%clk 0:00:13.2]}
41... Kf6 {[%clk 0:00:20.5]} 42. Ng5 {[%clk 0:00:09.7]} 42... Rf8 {[%clk
0:00:19.3]} 43. Ne4+ {[%clk 0:00:08]} 43... Kg7 {[%clk 0:00:19.2]} 44. Ng5
{[%clk 0:00:07.1]} 44... h6 {[%clk 0:00:19]} 45. Ne6+ {[%clk 0:00:06.9]} 45...
Kg8 {[%clk 0:00:19.5]} 46. Nxf8 {[%clk 0:00:07.1]} 46... Kxf8 {[%clk 0:00:20.2]}
47. Ke3 {[%clk 0:00:07.1]} 47... Ke8 {[%clk 0:00:19.6]} 48. Rd2 {[%clk 0:00:07]}
48... Ke7 {[%clk 0:00:20.1]} 49. Ke4 {[%clk 0:00:06.7]} 49... Nd6+ {[%clk
0:00:19.9]} 50. Kd5 {[%clk 0:00:06.9]} 50... Nf5 {[%clk 0:00:20.1]} 51. Ke5
{[%clk 0:00:04.8]} 51... Bb5 {[%clk 0:00:19.1]} 52. Rd5 {[%clk 0:00:04.2]} 52...
Bc6 {[%clk 0:00:18.4]} 53. Rc5 {[%clk 0:00:01.5]} 53... a6 {[%clk 0:00:18.6]}
54. g4 {[%clk 0:00:01.1]} 54... Ne3 {[%clk 0:00:18.9]} 55. Kd4 {[%clk
0:00:01.1]} 55... Nxg4 {[%clk 0:00:19.1]} 56. Rc3 {[%clk 0:00:01]} 56... Nxh2
{[%clk 0:00:19.2]} 57. Kc5 {[%clk 0:00:01.9]} 57... Ng4 {[%clk 0:00:18.9]} 58.
Kb6 {[%clk 0:00:02.8]} 58... h5 {[%clk 0:00:17.5]} 59. Rg3 {[%clk 0:00:02.7]}
59... Nf6 {[%clk 0:00:17.3]} 60. Rg1 {[%clk 0:00:02.7]} 60... Nd5+ {[%clk
0:00:17.7]} 61. Kc5 {[%clk 0:00:03.1]} 61... Nxf4 {[%clk 0:00:18.1]} 62. Re1+
{[%clk 0:00:03.2]} 62... Ne6+ {[%clk 0:00:18.4]} 63. Kb6 {[%clk 0:00:02.9]}
63... Kf6 {[%clk 0:00:18.7]} 64. Rc1 {[%clk 0:00:03.4]} 64... h4 {[%clk
0:00:19.1]} 65. Rc4 {[%clk 0:00:02.8]} 65... h3 {[%clk 0:00:18.7]} 66. Rh4
{[%clk 0:00:03]} 66... Ng5 {[%clk 0:00:19]} 67. Kc7 {[%clk 0:00:02.3]} 67... Kf5
{[%clk 0:00:18.9]} 68. Kb6 {[%clk 0:00:02.6]} 68... f6 {[%clk 0:00:19.2]} 69. b5
{[%clk 0:00:03.1]} 69... Bxb5 {[%clk 0:00:18.7]} 70. Kxb7 {[%clk 0:00:03.6]}
70... Bf1 {[%clk 0:00:17.1]} 71. Kb6 {[%clk 0:00:04]} 71... Nf3 {[%clk
0:00:17.5]} 72. Rh7 {[%clk 0:00:03.5]} 72... h2 {[%clk 0:00:17.7]} 73. Rxh2
{[%clk 0:00:02.7]} 73... Nxh2 {[%clk 0:00:18.1]} 74. Kc5 {[%clk 0:00:03.1]}
74... Nf3 {[%clk 0:00:18.5]} 75. Kc6 {[%clk 0:00:02.8]} 75... g5 {[%clk
0:00:18.9]} 76. Kd6 {[%clk 0:00:03.4]} 76... g4 {[%clk 0:00:19.5]} 77. Kd5
{[%clk 0:00:04]} 77... g3 {[%clk 0:00:20]} 78. Kc5 {[%clk 0:00:04]} 78... g2
{[%clk 0:00:20.4]} 79. Kb6 {[%clk 0:00:04.5]} 79... g1=Q+ {[%clk 0:00:20.5]} 80.
Kb7 {[%clk 0:00:05.4]} 80... Bb5 {[%clk 0:00:19.1]} 81. Kc7 {[%clk 0:00:05.4]}
81... Qc5+ {[%clk 0:00:18.8]} 82. Kd8 {[%clk 0:00:06]} 82... Qd6+ {[%clk
0:00:18.5]} 83. Kc8 {[%clk 0:00:06.4]} 83... Bd7+ {[%clk 0:00:16.6]} 84. Kb7
{[%clk 0:00:06.5]} 84... Qc6+ {[%clk 0:00:16]} 85. Ka7 {[%clk 0:00:07]} 85...
Qc7+ {[%clk 0:00:14.9]} 86. Ka8 {[%clk 0:00:06.8]} 86... Bc6# {[%clk 0:00:14.4]}
0-1

[Event "*** SCC Grand Prix: Titled Tuesday Blitz"]
[Site "Chess.com"]
[Date "2020.07.07"]
[Round "10"]
[White "jacky72"]
[Black "Indianlad"]
[Result "1/2-1/2"]
[WhiteElo "2654"]
[BlackElo "2938"]
[TimeControl "180+1"]
[EndTime "12:01:41 PDT"]
[Termination "Game drawn - insufficient material"]

1. d4 {[%clk 0:03:00.9]} 1... Nf6 {[%clk 0:03:00.2]} 2. c4 {[%clk 0:03:01.1]}
2... e6 {[%clk 0:03:00.8]} 3. Nf3 {[%clk 0:03:01.6]} 3... d5 {[%clk 0:03:00.9]}
4. Nc3 {[%clk 0:03:01.1]} 4... a6 {[%clk 0:03:01.5]} 5. cxd5 {[%clk 0:02:59.4]}
5... exd5 {[%clk 0:03:02.4]} 6. Bg5 {[%clk 0:02:59.8]} 6... Be6 {[%clk 0:03:03]}
7. e3 {[%clk 0:02:59.3]} 7... Nbd7 {[%clk 0:03:03.4]} 8. Bd3 {[%clk 0:02:59.9]}
8... Bd6 {[%clk 0:03:03.5]} 9. O-O {[%clk 0:02:58.3]} 9... h6 {[%clk 0:03:02.7]}
10. Bf4 {[%clk 0:02:58.2]} 10... Qe7 {[%clk 0:03:03.1]} 11. Rb1 {[%clk 0:02:53]}
11... O-O {[%clk 0:03:00.5]} 12. Bxd6 {[%clk 0:02:52]} 12... Qxd6 {[%clk
0:03:01.4]} 13. b4 {[%clk 0:02:52.7]} 13... c6 {[%clk 0:03:00.8]} 14. Na4 {[%clk
0:02:52.2]} 14... Ne4 {[%clk 0:02:57.1]} 15. Qc2 {[%clk 0:02:47.4]} 15... Rae8
{[%clk 0:02:41.5]} 16. Nc5 {[%clk 0:02:44.8]} 16... Ndxc5 {[%clk 0:02:30.2]} 17.
dxc5 {[%clk 0:02:35.8]} 17... Qc7 {[%clk 0:02:23.2]} 18. Bxe4 {[%clk 0:02:35.9]}
18... dxe4 {[%clk 0:02:23.4]} 19. Nd4 {[%clk 0:02:36.8]} 19... Bd5 {[%clk
0:02:21]} 20. a4 {[%clk 0:02:35.8]} 20... Re5 {[%clk 0:02:19.5]} 21. b5 {[%clk
0:02:34.7]} 21... axb5 {[%clk 0:02:18.3]} 22. axb5 {[%clk 0:02:34.5]} 22... Rg5
{[%clk 0:02:11.9]} 23. bxc6 {[%clk 0:02:32.6]} 23... bxc6 {[%clk 0:02:11.9]} 24.
Rb6 {[%clk 0:02:22.6]} 24... Qd7 {[%clk 0:02:11.3]} 25. Rfb1 {[%clk 0:02:12.5]}
25... h5 {[%clk 0:01:53.5]} 26. Rb8 {[%clk 0:02:11.1]} 26... Rxb8 {[%clk
0:01:48.8]} 27. Rxb8+ {[%clk 0:02:10.7]} 27... Kh7 {[%clk 0:01:49.7]} 28. f4
{[%clk 0:02:07.5]} 28... Rg6 {[%clk 0:01:48.8]} 29. Qe2 {[%clk 0:02:02.1]} 29...
Qh3 {[%clk 0:01:40.9]} 30. Kh1 {[%clk 0:01:37]} 30... Qg4 {[%clk 0:01:24.4]} 31.
Qxg4 {[%clk 0:01:31.6]} 31... hxg4 {[%clk 0:01:25.3]} 32. Kg1 {[%clk 0:01:24.6]}
32... g3 {[%clk 0:01:21]} 33. hxg3 {[%clk 0:01:23.2]} 33... Rxg3 {[%clk
0:01:20.9]} 34. Kf2 {[%clk 0:01:23.7]} 34... Rg6 {[%clk 0:01:20.9]} 35. Rc8
{[%clk 0:01:17.8]} 35... Rf6 {[%clk 0:01:18.9]} 36. g4 {[%clk 0:01:12.2]} 36...
g5 {[%clk 0:01:15.7]} 37. Nf5 {[%clk 0:01:11.4]} 37... Rg6 {[%clk 0:00:52.7]}
38. Kg3 {[%clk 0:01:00.2]} 38... Be6 {[%clk 0:00:46]} 39. Rxc6 {[%clk
0:00:45.5]} 39... gxf4+ {[%clk 0:00:37.2]} 40. Kxf4 {[%clk 0:00:43]} 40... Rg8
{[%clk 0:00:26.5]} 41. Rd6 {[%clk 0:00:33.4]} 41... Ra8 {[%clk 0:00:25.5]} 42.
Kxe4 {[%clk 0:00:31.1]} 42... Kg6 {[%clk 0:00:25.3]} 43. Nd4 {[%clk 0:00:27]}
43... Kf6 {[%clk 0:00:24.5]} 44. Kf4 {[%clk 0:00:26.8]} 44... Rc8 {[%clk
0:00:22.3]} 45. Rc6 {[%clk 0:00:24.7]} 45... Rg8 {[%clk 0:00:21.6]} 46. g5+
{[%clk 0:00:22.5]} 46... Rxg5 {[%clk 0:00:21.7]} 47. Nxe6 {[%clk 0:00:12.5]}
47... Rf5+ {[%clk 0:00:21.9]} 48. Ke4 {[%clk 0:00:12.3]} 48... fxe6 {[%clk
0:00:22.8]} 49. Rc7 {[%clk 0:00:10.8]} 49... Rd5 {[%clk 0:00:21.6]} 50. c6
{[%clk 0:00:07.6]} 50... Rc5 {[%clk 0:00:20.5]} 51. Rc8 {[%clk 0:00:07.1]} 51...
Ke7 {[%clk 0:00:20.6]} 52. Kd4 {[%clk 0:00:06.6]} 52... Rd5+ {[%clk 0:00:19.4]}
53. Kc4 {[%clk 0:00:06.2]} 53... Rd1 {[%clk 0:00:17]} 54. c7 {[%clk 0:00:04]}
54... Rc1+ {[%clk 0:00:16]} 55. Kd4 {[%clk 0:00:04.5]} 55... Kd7 {[%clk
0:00:13.7]} 56. Rh8 {[%clk 0:00:02.4]} 56... Kxc7 {[%clk 0:00:13]} 57. Ke5
{[%clk 0:00:02.4]} 57... Rc6 {[%clk 0:00:09.1]} 58. e4 {[%clk 0:00:02.6]} 58...
Kd7 {[%clk 0:00:09.2]} 59. Rh7+ {[%clk 0:00:03]} 59... Ke8 {[%clk 0:00:09.6]}
60. Kf6 {[%clk 0:00:03.5]} 60... e5+ {[%clk 0:00:09.9]} 61. Kxe5 {[%clk
0:00:04.2]} 61... Ra6 {[%clk 0:00:10.4]} 62. Kf5 {[%clk 0:00:04.4]} 62... Rb6
{[%clk 0:00:10.7]} 63. e5 {[%clk 0:00:04.9]} 63... Ra6 {[%clk 0:00:11.3]} 64.
Rb7 {[%clk 0:00:05.5]} 64... Rc6 {[%clk 0:00:11.3]} 65. Ra7 {[%clk 0:00:05.7]}
65... Rb6 {[%clk 0:00:11.5]} 66. Rc7 {[%clk 0:00:06.2]} 66... Ra6 {[%clk
0:00:11.6]} 67. Rc4 {[%clk 0:00:06.2]} 67... Rb6 {[%clk 0:00:11.8]} 68. Rh4
{[%clk 0:00:07.1]} 68... Ra6 {[%clk 0:00:11.9]} 69. Rb4 {[%clk 0:00:07.7]} 69...
Rc6 {[%clk 0:00:11.9]} 70. Ra4 {[%clk 0:00:07.9]} 70... Rb6 {[%clk 0:00:12.4]}
71. Ra2 {[%clk 0:00:08]} 71... Rc6 {[%clk 0:00:12.8]} 72. Rg2 {[%clk 0:00:08.3]}
72... Rb6 {[%clk 0:00:13]} 73. Rd2 {[%clk 0:00:08.5]} 73... Rc6 {[%clk
0:00:13.3]} 74. Rd4 {[%clk 0:00:09]} 74... Rb6 {[%clk 0:00:13.6]} 75. Ke4 {[%clk
0:00:09.9]} 75... Ke7 {[%clk 0:00:12.9]} 76. Kf5 {[%clk 0:00:09.3]} 76... Rh6
{[%clk 0:00:11]} 77. Rg4 {[%clk 0:00:06]} 77... Rh5+ {[%clk 0:00:09.8]} 78. Ke4
{[%clk 0:00:06.4]} 78... Rh1 {[%clk 0:00:10.5]} 79. Rg7+ {[%clk 0:00:05.7]}
79... Ke6 {[%clk 0:00:11.2]} 80. Rg6+ {[%clk 0:00:06.1]} 80... Kf7 {[%clk
0:00:11.7]} 81. Ra6 {[%clk 0:00:06.4]} 81... Re1+ {[%clk 0:00:11.4]} 82. Kd5
{[%clk 0:00:07]} 82... Rd1+ {[%clk 0:00:11.7]} 83. Kc5 {[%clk 0:00:07.5]} 83...
Re1 {[%clk 0:00:12.6]} 84. Kd6 {[%clk 0:00:07.1]} 84... Rd1+ {[%clk 0:00:13]}
85. Kc6 {[%clk 0:00:07.6]} 85... Ke6 {[%clk 0:00:12.7]} 86. Ra5 {[%clk
0:00:07.9]} 86... Rd8 {[%clk 0:00:12.7]} 87. Kc7 {[%clk 0:00:07.7]} 87... Rd2
{[%clk 0:00:12.7]} 88. Rc5 {[%clk 0:00:07.6]} 88... Rh2 {[%clk 0:00:12.8]} 89.
Kc6 {[%clk 0:00:08]} 89... Rh8 {[%clk 0:00:13]} 90. Rd5 {[%clk 0:00:07.7]} 90...
Rc8+ {[%clk 0:00:12.8]} 91. Kb7 {[%clk 0:00:08.3]} 91... Rc1 {[%clk 0:00:13.7]}
92. Rb5 {[%clk 0:00:08.2]} 92... Rc4 {[%clk 0:00:13]} 93. Kb6 {[%clk 0:00:09.1]}
93... Rc8 {[%clk 0:00:11.9]} 94. Rc5 {[%clk 0:00:09.3]} 94... Rb8+ {[%clk
0:00:11.9]} 95. Kc7 {[%clk 0:00:09.4]} 95... Rb1 {[%clk 0:00:12.7]} 96. Kd8
{[%clk 0:00:09.1]} 96... Rd1+ {[%clk 0:00:11.6]} 97. Ke8 {[%clk 0:00:09.1]}
97... Rh1 {[%clk 0:00:12.2]} 98. Kf8 {[%clk 0:00:09.5]} 98... Rg1 {[%clk
0:00:12.3]} 99. Rb5 {[%clk 0:00:09.5]} 99... Rg2 {[%clk 0:00:12.6]} 100. Ra5
{[%clk 0:00:09.7]} 100... Rb2 {[%clk 0:00:13]} 101. Kg7 {[%clk 0:00:09.5]}
101... Rb8 {[%clk 0:00:13.1]} 102. Kg6 {[%clk 0:00:09.3]} 102... Rg8+ {[%clk
0:00:13.7]} 103. Kh5 {[%clk 0:00:09.6]} 103... Rg1 {[%clk 0:00:14.6]} 104. Rb5
{[%clk 0:00:09.3]} 104... Kf5 {[%clk 0:00:15.1]} 105. Kh4 {[%clk 0:00:08.4]}
105... Kf4 {[%clk 0:00:15.6]} 106. Kh3 {[%clk 0:00:06.1]} 106... Re1 {[%clk
0:00:16.1]} 107. Rb8 {[%clk 0:00:04.4]} 107... Rxe5 {[%clk 0:00:14.9]} 108. Rb4+
{[%clk 0:00:03.7]} 108... Kf3 {[%clk 0:00:14.7]} 109. Rb3+ {[%clk 0:00:03.9]}
109... Ke4 {[%clk 0:00:14.5]} 110. Kg2 {[%clk 0:00:04.8]} 110... Rc5 {[%clk
0:00:14]} 111. Rg3 {[%clk 0:00:05.7]} 111... Rc2+ {[%clk 0:00:14.2]} 112. Kh3
{[%clk 0:00:06]} 112... Kf4 {[%clk 0:00:15.1]} 113. Rg4+ {[%clk 0:00:06.3]}
113... Kf5 {[%clk 0:00:15.8]} 114. Rg3 {[%clk 0:00:06.7]} 114... Rc8 {[%clk
0:00:16.4]} 115. Rf3+ {[%clk 0:00:06.7]} 115... Kg5 {[%clk 0:00:16.3]} 116. Kg2
{[%clk 0:00:07.6]} 116... Kg4 {[%clk 0:00:16.6]} 117. Rg3+ {[%clk 0:00:07.9]}
117... Kf4 {[%clk 0:00:16.9]} 118. Rf3+ {[%clk 0:00:08.8]} 118... Ke4 {[%clk
0:00:17.2]} 119. Rg3 {[%clk 0:00:08.9]} 119... Rc2+ {[%clk 0:00:17.1]} 120. Kh3
{[%clk 0:00:08.5]} 120... Re2 {[%clk 0:00:17.8]} 121. Rg4+ {[%clk 0:00:08.5]}
121... Kd3 {[%clk 0:00:18.2]} 122. Rg3+ {[%clk 0:00:08.6]} 122... Re3 {[%clk
0:00:19.1]} 123. Kg4 {[%clk 0:00:07.5]} 123... Rxg3+ {[%clk 0:00:17.5]} 124.
Kxg3 {[%clk 0:00:08.4]} 1/2-1/2